fUSD/lending_fUSD_20260517
["ID","MTS","AMOUNT","RATE_DAILY","PERIOD"]
[422474348,1778977840000,-897.579213,0.00024901,2]
[422474321,1778977840000,-265.0,0.00024,2]
[422474345,1778977840000,-151.0,0.00024901,2]
[422474335,1778977840000,-151.0,0.000248,2]
[422474320,1778977840000,-176.3,0.00024,2]
[422474297,1778977840000,-164.0,0.00021,2]
[422474316,1778977840000,-199.293253,0.00023759,2]
[422474343,1778977840000,-151.0,0.000249,2]
[422474290,1778977840000,-362.88,0.00020467,2]
[422474291,1778977840000,-362.88,0.00020467,2]
[422474289,1778977840000,-213.37737141,0.00020444,2]
[422474293,1778977840000,-2000.0,0.00020663,2]
[422474305,1778977840000,-2000.0,0.00022959,2]
[422474295,1778977840000,-152.0,0.00021,2]
[422474303,1778977840000,-265.0,0.00022,2]
[422474304,1778977840000,-1430.60904024,0.00022494,2]
[422474292,1778977840000,-424.83367647,0.0002048,2]
[422474294,1778977840000,-212.26,0.00020891,2]
[422474296,1778977840000,-265.0,0.00021,2]
[422474300,1778977840000,-5000.0,0.00021918,2]
[422474298,1778977840000,-450.0,0.00021162,2]
[422474301,1778977840000,-151.0,0.00021918,2]
[422474299,1778977840000,-151.0,0.00021918,2]
[422474306,1778977840000,-162.0,0.00023,2]
[422474310,1778977840000,-500.0,0.0002373,2]
[422474308,1778977840000,-513.69538444,0.00023659,2]
[422474317,1778977840000,-199.293253,0.00023759,2]
[422474318,1778977840000,-199.293253,0.00023759,2]
[422474307,1778977840000,-265.0,0.00023,2]
[422474313,1778977840000,-500.0,0.0002373,2]
[422474309,1778977840000,-151.0,0.00023727,7]
[422474312,1778977840000,-500.0,0.0002373,2]
[422474314,1778977840000,-461.01707129,0.00023759,2]
[422474311,1778977840000,-500.0,0.0002373,2]
[422474315,1778977840000,-151.0,0.00023759,2]
[422474353,1778977840000,-207.848846,0.00024901,2]
[422474302,1778977840000,-152.0,0.00022,2]
[422474355,1778977840000,-207.848846,0.00024901,2]
[422474380,1778977840000,-178.756601,0.00024901,2]
[422474389,1778977840000,-1802.555506,0.00024901,2]
[422474387,1778977840000,-1802.555506,0.00024901,2]
[422474391,1778977840000,-1802.555506,0.00024901,2]
[422474385,1778977840000,-1802.555506,0.00024901,2]
[422474388,1778977840000,-1802.555506,0.00024901,2]
[422474386,1778977840000,-1802.555506,0.00024901,2]
[422474396,1778977840000,-151.0,0.00024901,2]
[422474390,1778977840000,-1802.555506,0.00024901,2]
[422474394,1778977840000,-151.0,0.00024901,2]
[422474395,1778977840000,-151.0,0.00024901,2]
[422474392,1778977840000,-1802.555505,0.00024901,2]
[422474393,1778977840000,-151.0,0.00024901,2]
[422474403,1778977840000,-192.580129,0.00024901,2]
[422474402,1778977840000,-151.0,0.00024901,2]
[422474398,1778977840000,-151.0,0.00024901,2]
[422474397,1778977840000,-151.0,0.00024901,2]
[422474399,1778977840000,-192.580129,0.00024901,2]
[422474406,1778977840000,-151.0,0.00024901,2]
[422474401,1778977840000,-151.0,0.00024901,2]
[422474400,1778977840000,-192.580129,0.00024901,2]
[422474404,1778977840000,-192.580129,0.00024901,2]
[422474408,1778977840000,-192.580129,0.00024901,2]
[422474407,1778977840000,-192.580129,0.00024901,2]
[422474410,1778977840000,-417932.28223239,0.00024901,2]
[422474409,1778977840000,-13922.5340477,0.00024901,2]
[422474411,1778977840000,-38841.26742005,0.00024901,2]
[422474381,1778977840000,-178.756601,0.00024901,2]
[422474377,1778977840000,-178.756601,0.00024901,2]
[422474405,1778977840000,-151.0,0.00024901,2]
[422474373,1778977840000,-151.0,0.00024901,2]
[422474378,1778977840000,-178.756601,0.00024901,2]
[422474352,1778977840000,-897.579213,0.00024901,2]
[422474349,1778977840000,-897.579213,0.00024901,2]
[422474346,1778977840000,-151.0,0.00024901,2]
[422474347,1778977840000,-261.228318,0.00024901,2]
[422474357,1778977840000,-207.848846,0.00024901,2]
[422474362,1778977840000,-502.135492,0.00024901,2]
[422474361,1778977840000,-648.70051328,0.00024901,2]
[422474358,1778977840000,-207.848846,0.00024901,2]
[422474360,1778977840000,-207.848843,0.00024901,2]
[422474359,1778977840000,-207.848846,0.00024901,2]
[422474363,1778977840000,-502.135492,0.00024901,2]
[422474370,1778977840000,-151.0,0.00024901,2]
[422474368,1778977840000,-151.0,0.00024901,2]
[422474351,1778977840000,-897.579213,0.00024901,2]
[422474369,1778977840000,-502.135492,0.00024901,2]
[422474371,1778977840000,-502.135483,0.00024901,2]
[422474376,1778977840000,-229.266453,0.00024901,2]
[422474374,1778977840000,-151.0,0.00024901,2]
[422474379,1778977840000,-178.756601,0.00024901,2]
[422474364,1778977840000,-502.135492,0.00024901,2]
[422474382,1778977840000,-178.756601,0.00024901,2]
[422474375,1778977840000,-151.0,0.00024901,2]
[422474383,1778977840000,-178.756601,0.00024901,2]
[422474372,1778977840000,-151.0,0.00024901,2]
[422474367,1778977840000,-502.135492,0.00024901,2]
[422474365,1778977840000,-502.135492,0.00024901,2]
[422474366,1778977840000,-502.135492,0.00024901,2]
[422474384,1778977840000,-178.756609,0.00024901,2]
[422474413,1778977841000,-953.06151193,0.00018258,2]
[422474414,1778977841000,-8809.73756925,0.00018258,2]
[422474412,1778977841000,-781.06101906,0.00018258,2]
[422474415,1778977841000,-8947.21879473,0.00018258,2]
[422474416,1778977841000,-8943.78386462,0.00018258,2]
[422474419,1778977841000,-192.580129,0.0002,2]
[422474417,1778977841000,-9077.54866152,0.00018258,2]
[422474420,1778977841000,-151.0,0.00024658,2]
[422474422,1778977841000,-151.0,0.00024658,2]
[422474421,1778977841000,-151.0,0.00024658,2]
[422474424,1778977841000,-192.580122,0.00024901,2]
[422474428,1778977841000,-1063.26222581,0.00024901,2]
[422474423,1778977841000,-192.580129,0.00024901,2]
[422474427,1778977841000,-293.5943995,0.00024901,2]
[422474425,1778977841000,-151.0,0.00024901,2]
[422474426,1778977841000,-88242.18104107,0.00024901,2]
[422474418,1778977841000,-4304.47857889,0.00018258,2]
[422474434,1778977852000,-12326.62094871,0.00024901,2]
[422474433,1778977852000,-419.53281794,0.00019665,2]
[422474435,1778977852000,-36817.36063299,0.00024901,2]
[422474442,1778977853000,-8780.14794106,0.00024901,2]
[422474443,1778977853000,-2008.10092893,0.00024901,2]
[422474440,1778977853000,-2401.3,0.00024901,2]
[422474441,1778977853000,-118263.84985918,0.00024901,2]
[422474439,1778977853000,-7233.89102283,0.00024901,2]
[422474438,1778977853000,-5000.0,0.00024901,2]
[422474436,1778977853000,-419.53281794,0.00022057,2]
[422474437,1778977853000,-935.04357206,0.00024901,2]
[422474444,1778977859000,500.0,0.00017372,2]
[422474445,1778977859000,500.0,0.00017372,2]
[422474446,1778977860000,347.82,0.00017372,2]
[422474448,1778977864000,500.0,0.00024675,120]
[422474447,1778977864000,500.0,0.00026894,120]
[422474450,1778977875000,500.0,0.00017372,2]
[422474449,1778977875000,500.0,0.00017372,2]
[422474451,1778977876000,500.0,0.00017372,2]
[422474453,1778977876000,500.0,0.00019699,2]
[422474452,1778977876000,500.0,0.00017372,2]
[422474454,1778977878000,268.4296,0.000168,2]
[422474455,1778977907000,1728.34013392,0.0003013,120]
[422474456,1778977910000,229.0,0.0003013,120]
[422474458,1778977911000,406.0,0.0003013,120]
[422474457,1778977911000,208.0,0.0003013,120]
[422474459,1778977912000,356.0,0.0003013,120]
[422474460,1778977913000,294.0,0.0003013,120]
[422474461,1778977943000,500.0,0.00017372,2]
[422474462,1778977944000,383.7604,0.00017372,2]
[422474465,1778977944000,500.0,0.00017372,2]
[422474464,1778977944000,500.0,0.00017372,2]
[422474463,1778977944000,116.2396,0.00017372,2]
[422474466,1778977945000,500.0,0.00019699,2]
[422474467,1778977957000,500.0,0.00017372,2]
[422474468,1778977958000,500.0,0.00017372,2]
[422474471,1778977958000,500.0,0.00019699,2]
[422474470,1778977958000,500.0,0.00017372,2]
[422474469,1778977958000,500.0,0.00017372,2]
[422474472,1778977964000,168.0,0.0002,2]
[422474473,1778977967000,458.0,0.0003013,120]
[422474474,1778977968000,157.14981793,0.0003013,120]
[422474476,1778977980000,500.0,0.00017372,2]
[422474475,1778977980000,500.0,0.00017372,2]
[422474477,1778977989000,169.43,0.00012295,2]
[422474478,1778978121000,353.4207141,0.00017372,2]
[422474479,1778978125000,500.0,0.00017372,2]
[422474480,1778978125000,506.53569257,0.00017372,2]
[422474481,1778978154000,161.0,0.00021,2]
[422474482,1778978154000,161.0,0.00021,2]
[422474483,1778978203000,500.0,0.0003013,120]
[422474484,1778978243000,500.0,0.00017372,2]
[422474485,1778978244000,500.0,0.00017372,2]
[422474486,1778978258000,500.0,0.00017372,2]
[422474489,1778978477000,500.0,0.00017372,2]
[422474488,1778978477000,500.0,0.00017372,2]
[422474490,1778978478000,214.86815897,0.00017372,2]
[422474492,1778978484000,161.0,0.00021,2]
[422474491,1778978484000,161.0,0.00021,2]
[422474493,1778978615000,244.51,0.00026296,120]
[422474494,1778978615000,244.51,0.00029218,120]
[422474495,1778978763000,771.0,0.00030136,120]
[422474496,1778978787000,162.0,0.00021,2]
[422474498,1778978795000,160.89,0.00012502,2]
[422474497,1778978795000,160.89,0.000119,2]
[422474503,1778978796000,160.89,0.00015511,2]
[422474502,1778978796000,160.89,0.00014909,2]
[422474501,1778978796000,160.89,0.00014307,2]
[422474500,1778978796000,160.89,0.00013706,2]
[422474499,1778978796000,160.89,0.00013104,2]
[422474504,1778978797000,160.89,0.00016113,2]
[422474505,1778978797000,160.89,0.00016715,2]
[422474507,1778978797000,160.89,0.00017918,2]
[422474508,1778978797000,160.89,0.0001852,2]
[422474506,1778978797000,160.89,0.00017316,2]
[422474512,1778978798000,160.89,0.00020927,2]
[422474511,1778978798000,160.89,0.00020325,2]
[422474510,1778978798000,160.89,0.00019723,2]
[422474509,1778978798000,160.89,0.00019122,2]
[422474513,1778978895000,2000.0,0.00028936,120]
[422474514,1778978916000,199.0,0.0002,2]
[422474515,1778978917000,199.0,0.00021,2]
[422474516,1778978941000,1000.0,0.00030135,120]
[422474519,1778979031000,-160.89,0.00021529,2]
[422474521,1778979031000,-457.18949842,0.0002173,2]
[422474523,1778979031000,-250.0,0.0002183,2]
[422474520,1778979031000,-317.61807902,0.0002173,2]
[422474524,1778979031000,-2000.0,0.000219,2]
[422474526,1778979031000,-199.0,0.00022,2]
[422474525,1778979031000,-215.0,0.00021946,2]
[422474527,1778979031000,-160.89,0.00022131,2]
[422474522,1778979031000,-10.93444288,0.0002173,2]
[422474555,1778979032000,-405.0,0.00023895,2]
[422474554,1778979032000,-200.0,0.00023778,2]
[422474557,1778979032000,-5023.90332323,0.00023944,2]
[422474556,1778979032000,-3451.73952347,0.00023944,2]
[422474559,1778979032000,-454.68206637,0.00023944,2]
[422474558,1778979032000,-747.8512204,0.00023944,2]
[422474562,1778979032000,-12459.82282015,0.00023944,2]
[422474563,1778979032000,-440.0,0.00023944,2]
[422474565,1778979032000,-716.88532856,0.00023944,2]
[422474566,1778979032000,-6577.52919766,0.00023944,2]
[422474567,1778979032000,-199.0,0.00024,2]
[422474568,1778979032000,-151.0,0.00024023,2]
[422474570,1778979032000,-152.0,0.00024023,2]
[422474572,1778979032000,-152.0,0.00024023,2]
[422474569,1778979032000,-152.0,0.00024023,2]
[422474571,1778979032000,-152.0,0.00024023,2]
[422474573,1778979032000,-152.0,0.00024023,2]
[422474574,1778979032000,-152.0,0.00024023,2]
[422474576,1778979032000,-152.0,0.00024023,2]
[422474578,1778979032000,-152.0,0.00024023,2]
[422474575,1778979032000,-152.0,0.00024023,2]
[422474579,1778979032000,-152.0,0.00024023,2]
[422474564,1778979032000,-1226.08351096,0.00023944,2]
[422474553,1778979032000,-8633.33,0.00023756,2]
[422474548,1778979032000,-169.0,0.00023609,2]
[422474552,1778979032000,-300.92605614,0.00023682,2]
[422474577,1778979032000,-152.0,0.00024023,2]
[422474529,1778979032000,-160.89,0.00022732,2]
[422474528,1778979032000,-370.19509847,0.00022656,2]
[422474530,1778979032000,-1200.0,0.00022999,2]
[422474532,1778979032000,-2000.0,0.00023,2]
[422474537,1778979032000,-2000.0,0.00023149,2]
[422474531,1778979032000,-199.0,0.00023,2]
[422474534,1778979032000,-150.0,0.00023093,2]
[422474533,1778979032000,-200.0,0.00023081,2]
[422474536,1778979032000,-300.0,0.00023148,2]
[422474535,1778979032000,-300.0,0.00023148,2]
[422474539,1778979032000,-5000.0,0.0002322,2]
[422474542,1778979032000,-150.0,0.0002335,2]
[422474541,1778979032000,-1606.06,0.0002334,2]
[422474540,1778979032000,-160.89,0.00023334,2]
[422474538,1778979032000,-150.0,0.00023156,2]
[422474543,1778979032000,-244.51,0.00023374,2]
[422474545,1778979032000,-211.8,0.00023434,2]
[422474544,1778979032000,-13939.78,0.00023397,2]
[422474546,1778979032000,-1145.79,0.00023448,2]
[422474547,1778979032000,-719.55,0.00023552,2]
[422474549,1778979032000,-500.0,0.00023635,2]
[422474550,1778979032000,-212.72597992,0.00023682,2]
[422474551,1778979032000,-250.0,0.00023682,2]
[422474580,1778979032000,-174.61919141,0.00024023,2]
[422474591,1778979032000,-500.0,0.00024297,2]
[422474583,1778979032000,-459.03450327,0.00024127,2]
[422474611,1778979032000,-1575.2234,0.00024701,2]
[422474610,1778979032000,-3738.30209017,0.00024701,2]
[422474613,1778979032000,-1756.47219803,0.00024701,2]
[422474612,1778979032000,-743.52780197,0.00024701,2]
[422474614,1778979032000,-5000.0,0.00024701,2]
[422474615,1778979032000,-719.55,0.00024729,2]
[422474616,1778979032000,-350.0,0.00024752,2]
[422474617,1778979032000,-498.33082258,0.00024762,2]
[422474620,1778979032000,-1100.0,0.000248,9]
[422474621,1778979032000,-500.0,0.00024801,2]
[422474609,1778979032000,-6261.69790983,0.00024701,2]
[422474619,1778979032000,-548.03624956,0.00024791,2]
[422474623,1778979032000,-500.0,0.00024801,2]
[422474625,1778979032000,-504.76,0.00024801,2]
[422474630,1778979032000,-354.50534306,0.00024801,2]
[422474629,1778979032000,-500.0,0.00024801,2]
[422474624,1778979032000,-500.0,0.00024801,2]
[422474626,1778979032000,-500.0,0.00024801,2]
[422474627,1778979032000,-500.0,0.00024801,2]
[422474628,1778979032000,-500.0,0.00024801,2]
[422474632,1778979032000,-2918.88155157,0.00024801,2]
[422474581,1778979032000,-500.0,0.00024023,2]
[422474622,1778979032000,-500.0,0.00024801,2]
[422474608,1778979032000,-1165.27105608,0.00024701,2]
[422474618,1778979032000,-548.03624956,0.00024791,2]
[422474607,1778979032000,-6062.65912409,0.00024701,2]
[422474585,1778979032000,-395.52896701,0.00024127,2]
[422474606,1778979032000,-2176.20536496,0.00024701,2]
[422474582,1778979032000,-152.0,0.00024063,7]
[422474586,1778979032000,-719.55,0.00024141,2]
[422474584,1778979032000,-603.84235597,0.00024127,2]
[422474589,1778979032000,-672.61935453,0.000242,2]
[422474588,1778979032000,-351.5299975,0.000242,2]
[422474592,1778979032000,-350.0,0.00024303,2]
[422474593,1778979032000,-200.0,0.000245,8]
[422474631,1778979032000,-1391.0,0.00024801,5]
[422474590,1778979032000,-379.33242465,0.000242,2]
[422474595,1778979032000,-215.03962261,0.00024538,2]
[422474587,1778979032000,-596.51822332,0.000242,2]
[422474597,1778979032000,-500.0,0.00024571,2]
[422474598,1778979032000,-208.44072055,0.00024575,2]
[422474605,1778979032000,-218.84416236,0.00024701,2]
[422474604,1778979032000,-597.4482822,0.00024701,2]
[422474601,1778979032000,-1000.0,0.00024658,2]
[422474602,1778979032000,-150.68727018,0.000247,33]
[422474600,1778979032000,-4168.5776,0.00024601,2]
[422474594,1778979032000,-160.0,0.00024538,2]
[422474596,1778979032000,-181.08010149,0.00024571,2]
[422474603,1778979032000,-800.0,0.000247,9]
[422474599,1778979032000,-500.0,0.000246,8]
[422474639,1778979037000,-807.91327417,0.00024801,2]
[422474638,1778979037000,-4934.206548,0.00024801,2]
[422474645,1778979038000,-4810.94195086,0.00024801,2]
[422474640,1778979038000,-467.4334257,0.00024801,2]
[422474642,1778979038000,-2495.87773394,0.00024801,2]
[422474643,1778979038000,-1717.0,0.00024801,2]
[422474641,1778979038000,-1513.16049576,0.00024801,2]
[422474644,1778979038000,-747.90915539,0.00024801,2]
[422474650,1778979038000,-3333.37856841,0.00024801,2]
[422474648,1778979038000,-3596.22805072,0.00024801,2]
[422474646,1778979038000,-339.88265974,0.00024801,2]
[422474651,1778979038000,-3220.16893584,0.00024801,2]
[422474649,1778979038000,-20955.83799274,0.00024801,2]
[422474653,1778979038000,-2098.95,0.00024801,2]
[422474652,1778979038000,-5400.0,0.00024801,2]
[422474647,1778979038000,-796.55986639,0.00024801,2]
[422474665,1778979040000,-390.204,0.00024801,2]
[422474661,1778979040000,-173577.65747783,0.00024801,2]
[422474660,1778979040000,-150.0,0.00024701,2]
[422474662,1778979040000,-18850.04164589,0.00024801,2]
[422474664,1778979040000,-37696.78226531,0.00024801,2]
[422474663,1778979040000,-1068.98655423,0.00024801,2]
[422474668,1778979040000,-19226.23872071,0.00024801,2]
[422474666,1778979040000,-1161.51421182,0.00024801,2]
[422474669,1778979040000,-475.80353924,0.00024801,2]
[422474674,1778979040000,-1135.96567531,0.00024801,2]
[422474675,1778979040000,-113107.29642432,0.00024801,2]
[422474673,1778979040000,-504.28224,0.00024801,2]
[422474667,1778979040000,-1819.1209591,0.00024801,2]
[422474670,1778979040000,-83231.823612,0.00024801,2]
[422474671,1778979040000,-2610.0,0.00024801,2]
[422474676,1778979040000,-2316.90688967,0.00024801,2]
[422474672,1778979040000,-1012.13922078,0.00024801,2]
[422474703,1778979043000,-2500.0,0.00024701,2]
[422474705,1778979043000,-4067.36611766,0.00024801,2]
[422474706,1778979043000,-341.04,0.00024801,2]
[422474704,1778979043000,-805359.79879025,0.00024801,2]
[422474708,1778979043000,-8545.91682138,0.00024801,2]
[422474710,1778979043000,-6835.90885729,0.00024801,2]
[422474711,1778979043000,-1396.11966319,0.00024801,2]
[422474709,1778979043000,-193.95096607,0.00024701,2]
[422474707,1778979043000,-500.0,0.00024801,2]
[422474721,1778979046000,-1110.9295,0.00024801,2]
[422474722,1778979046000,-1151.30067516,0.00024801,2]
[422474723,1778979046000,-39820.69103945,0.00024801,2]
[422474724,1778979046000,-22628.77695369,0.00024801,2]
[422474725,1778979046000,-62051.28906526,0.00024801,2]
[422474728,1778979046000,-1055.222,0.00024801,2]
[422474727,1778979046000,-27504.49055321,0.00024801,2]
[422474729,1778979046000,-142836.81143515,0.00024801,2]
[422474730,1778979046000,-494.61771879,0.00024801,2]
[422474732,1778979046000,-5726.62315455,0.00024801,2]
[422474726,1778979046000,-347.27831802,0.00024801,2]
[422474731,1778979046000,-65166.45,0.00024801,2]
[422474752,1778979126000,168.0,0.0002,2]
[422474756,1778979444000,162.0,0.00021,2]
[422474758,1778979694000,4838.01,0.00015,2]
[422474759,1778979695000,16154.34942566,0.00015,2]
[422474763,1778979924000,3572.25473901,0.000107,2]
[422474762,1778979924000,3572.25473901,0.000107,2]
[422474764,1778979924000,3572.25473901,0.000107,2]
[422474761,1778979924000,3572.25473901,0.000107,2]
[422474765,1778979924000,3572.25473901,0.000107,2]
[422474767,1778979924000,3572.25473901,0.000107,2]
[422474768,1778979924000,3572.25473901,0.000107,2]
[422474770,1778979924000,3572.25473901,0.000107,2]
[422474769,1778979924000,3572.25473901,0.000107,2]
[422474766,1778979924000,3572.25473901,0.000107,2]
[422474771,1778979925000,-483.89359467,0.000107,2]
[422474772,1778979979000,530.0,0.000301,120]
[422474773,1778979999000,-300.0,0.00010699,2]
[422474774,1778979999000,-124.83890741,0.00010699,2]
[422474777,1778980140000,1000.0,0.00030134,120]
[422474779,1778980150000,940.06955066,0.00030136,120]
[422474802,1778980233000,-208.08566668,0.0001055,2]
[422474804,1778980233000,-100.69285407,0.00010699,2]
[422474803,1778980233000,-221.0230326,0.000106,2]
[422474805,1778980233000,-49.30714593,0.00010699,2]
[422474801,1778980233000,-230.73232478,0.000105,2]
[422474806,1778980233000,-300.0,0.00010699,2]
[422474808,1778980233000,-215264.19649663,0.000107,2]
[422474809,1778980233000,-343.32323318,0.000107,2]
[422474810,1778980233000,-740.01793856,0.000107,2]
[422474807,1778980233000,-1200.0,0.00010699,2]
[422474838,1778980238000,-255.0,0.00012871,2]
[422474837,1778980238000,-1680.0,0.00011769,2]
[422474835,1778980238000,-255.0,0.00011737,2]
[422474836,1778980238000,-420.0,0.00011761,2]
[422474834,1778980238000,-409.89479967,0.00011637,2]
[422474833,1778980238000,-193.0,0.0001155,2]
[422474832,1778980238000,-250.0,0.0001155,2]
[422474828,1778980238000,-65833.72966483,0.000107,2]
[422474830,1778980238000,-15543.64175067,0.0001145,2]
[422474829,1778980238000,-150.0,0.0001134,2]
[422474827,1778980238000,-395.24465621,0.000107,2]
[422474824,1778980238000,-3039.30577262,0.000107,2]
[422474825,1778980238000,-925.65622724,0.000107,2]
[422474826,1778980238000,-3348.73294263,0.000107,2]
[422474823,1778980238000,-614.52446019,0.000107,2]
[422474840,1778980238000,-587.0,0.00012928,2]
[422474831,1778980238000,-250.0,0.0001155,2]
[422474845,1778980238000,-15543.64175059,0.00014372,2]
[422474839,1778980238000,-15543.64175059,0.00012911,2]
[422474844,1778980238000,-752.0,0.0001424,2]
[422474860,1778980238000,-300.856828,0.00015,2]
[422474856,1778980238000,-102448.24986118,0.00015,2]
[422474857,1778980238000,-545758.30962381,0.00015,2]
[422474859,1778980238000,-534.124359,0.00015,2]
[422474855,1778980238000,-182.67874986,0.0001499,2]
[422474841,1778980238000,-2351.0,0.00012946,2]
[422474854,1778980238000,-6366.27241426,0.000149,2]
[422474851,1778980238000,-753.17963454,0.000149,2]
[422474852,1778980238000,-800.0,0.000149,5]
[422474847,1778980238000,-200.0,0.000147,5]
[422474850,1778980238000,-400.0,0.000148,5]
[422474849,1778980238000,-500.0,0.000148,5]
[422474848,1778980238000,-200.0,0.000147,5]
[422474846,1778980238000,-450.76,0.0001462,2]
[422474842,1778980238000,-500.0,0.00013698,2]
[422474843,1778980238000,-823.0,0.0001421,2]
[422474861,1778980238000,-617.58991112,0.00015,2]
[422474853,1778980238000,-600.0,0.000149,5]
[422474870,1778980240000,-182433.24508403,0.00015,2]
[422474869,1778980240000,-317.893275,0.00015,2]
[422474868,1778980240000,-1840.23188411,0.00015,2]
[422474867,1778980240000,-252.39714752,0.00015,2]
[422474866,1778980240000,-23921.5,0.00015,2]
[422474865,1778980240000,-329.52385436,0.00015,2]
[422474895,1778980243000,-1118.29677384,0.00015,2]
[422474896,1778980243000,-89004.18955635,0.00015,2]
[422474897,1778980243000,-453302.27078912,0.00015,2]
[422474906,1778980246000,-335.819307,0.00015,2]
[422474905,1778980246000,-19601.32339213,0.00015,2]
[422474904,1778980246000,-1558.86743648,0.00015,2]
[422474903,1778980246000,-274.13283385,0.00015,2]
[422474911,1778980416000,2000.0,0.00029752,120]
[422474913,1778980794000,-188.10217329,0.00011179,2]
[422474912,1778980794000,-154.47,0.00010254,2]
[422474928,1778980795000,-2038.211125,0.00014453,2]
[422474926,1778980795000,-250.0,0.00013789,2]
[422474927,1778980795000,-587.0,0.00014308,2]
[422474924,1778980795000,-250.0,0.0001244,2]
[422474925,1778980795000,-420.0,0.00013032,2]
[422474922,1778980795000,-300.0,0.0001187,2]
[422474923,1778980795000,-257.0,0.00011871,2]
[422474918,1778980795000,-150.0,0.00011423,2]
[422474920,1778980795000,-150.0,0.00011647,2]
[422474919,1778980795000,-150.0,0.00011535,2]
[422474931,1778980795000,-16338.33064359,0.0001462,2]
[422474917,1778980795000,-150.0,0.00011311,2]
[422474914,1778980795000,-250.0,0.0001128,2]
[422474916,1778980795000,-2320.46931121,0.0001128,2]
[422474915,1778980795000,-341.60737978,0.0001128,2]
[422474921,1778980795000,-150.0,0.00011759,2]
[422474929,1778980795000,-529.5993,0.00014526,2]
[422474942,1778980795000,-500.0,0.00014719,2]
[422474930,1778980795000,-166.66,0.00014598,2]
[422474948,1778980795000,-500.0,0.00014999,2]
[422474947,1778980795000,-500.0,0.00014999,2]
[422474932,1778980795000,-5873.04386097,0.0001462,2]
[422474946,1778980795000,-151.0,0.00014997,2]
[422474945,1778980795000,-44445.1782097,0.0001472,2]
[422474944,1778980795000,-541236.1537489,0.0001472,2]
[422474941,1778980795000,-500.0,0.00014719,2]
[422474943,1778980795000,-1492.5162929,0.0001472,2]
[422474949,1778980795000,-175749.46078188,0.00015,2]
[422474938,1778980795000,-500.0,0.00014719,2]
[422474937,1778980795000,-500.0,0.00014719,2]
[422474940,1778980795000,-150.0,0.00014719,2]
[422474939,1778980795000,-500.0,0.00014719,2]
[422474935,1778980795000,-3178.155,0.000147,2]
[422474936,1778980795000,-153.397,0.000147,2]
[422474933,1778980795000,-5729.64517278,0.00014666,2]
[422474934,1778980795000,-1200.0,0.00014699,2]
[422474952,1778980876000,-500.0,0.00014719,2]
[422474950,1778980876000,-198.09644192,0.00010154,2]
[422474953,1778980876000,-500.0,0.00014719,2]
[422474951,1778980876000,-70.33315808,0.00010154,2]
[422474955,1778981340000,1000.0,0.00030135,120]
[422474957,1778981380000,500.0,0.00014719,2]
[422474956,1778981380000,500.0,0.00014719,2]
[422474959,1778981423000,639.28,0.00030137,120]
[422474969,1778981432000,-1200.0,0.00014965,2]
[422474960,1778981432000,-699.20288059,0.00014855,2]
[422474965,1778981432000,-5048.44925442,0.00014855,2]
[422474964,1778981432000,-609.07999999,0.00014855,2]
[422474966,1778981432000,-334.7294147,0.00014855,2]
[422474968,1778981432000,-300.0,0.00014965,2]
[422474975,1778981432000,-1450.04770829,0.00015,2]
[422474971,1778981432000,-1001.59004875,0.00014989,2]